fUST/lending_fUST_20250725
["ID","MTS","AMOUNT","RATE_DAILY","PERIOD"]
[374753961,1753432239811,-460.0,0.00017563,2]
[374753962,1753432239821,-460.0,0.00017563,2]
[374753963,1753432239830,-460.0,0.00017563,2]
[374753964,1753432239839,-460.0,0.00017563,2]
[374753965,1753432239849,-231.27315472,0.00017573,2]
[374753966,1753432239859,-519.33640727,0.00017573,2]
[374753967,1753432239869,-500.0,0.00017573,2]
[374753968,1753432239879,-500.35414614,0.00017573,2]
[374753969,1753432239888,-500.9356751,0.00017573,2]
[374753970,1753432239898,-501.0701744,0.00017573,2]
[374753971,1753432240007,-500.0,0.00017573,2]
[374753972,1753432240020,-510.17239088,0.00017573,2]
[374753973,1753432240030,-582.21519902,0.00017573,2]
[374753974,1753432240039,-151.0,0.00017573,2]
[374753975,1753432240051,-151.0,0.00017573,2]
[374753976,1753432240060,-182.484937,0.00017666,2]
[374753977,1753432240070,-1352.23982071,0.00017737,2]
[374753978,1753432240079,-1000.0,0.00017821,2]
[374753979,1753432240089,-460.0,0.0001783,2]
[374753980,1753432240101,-460.0,0.0001783,2]
[374753981,1753432240110,-460.0,0.0001783,2]
[374753982,1753432240120,-460.0,0.00017831,2]
[374753983,1753432240129,-460.0,0.00017831,2]
[374753984,1753432240139,-460.0,0.00017831,2]
[374753985,1753432240148,-460.0,0.00017831,2]
[374753986,1753432240158,-460.0,0.00017831,2]
[374753987,1753432240167,-460.0,0.00017831,2]
[374753988,1753432240178,-460.0,0.00017831,2]
[374753990,1753432240188,-460.0,0.00017831,2]
[374753991,1753432240198,-460.0,0.00017831,2]
[374753992,1753432240207,-460.0,0.00017831,2]
[374753993,1753432240217,-161.16,0.00017831,2]
[374753994,1753432240227,-460.0,0.00017831,2]
[374753995,1753432240236,-460.0,0.00017831,2]
[374753996,1753432240246,-460.0,0.00017831,2]
[374753997,1753432240255,-460.0,0.00017831,2]
[374753998,1753432240265,-595.16,0.00017831,2]
[374753999,1753432240274,-460.0,0.00017831,2]
[374754000,1753432240283,-456.39,0.00017831,2]
[374754001,1753432240292,-460.0,0.00017831,2]
[374754002,1753432240302,-460.0,0.00017831,2]
[374754003,1753432240311,-460.0,0.00017831,2]
[374754004,1753432240321,-460.0,0.00017831,2]
[374754005,1753432240330,-460.0,0.00017831,2]
[374754006,1753432240340,-277.31719442,0.00017831,2]
[374754007,1753432240349,-460.0,0.00017831,2]
[374754008,1753432240358,-460.0,0.00017832,2]
[374754009,1753432240368,-460.0,0.00017837,2]
[374754010,1753432240378,-344.04,0.00017837,2]
[374754011,1753432240388,-460.0,0.00017837,2]
[374754012,1753432240397,-460.0,0.00017837,2]
[374754013,1753432240407,-460.0,0.00017837,2]
[374754014,1753432240416,-460.0,0.00017837,2]
[374754015,1753432240428,-3393.16473794,0.00017868,2]
[374754016,1753432240438,-2896.26964536,0.00018,2]
[374754017,1753432240448,-460.0,0.00018104,2]
[374754018,1753432240459,-460.0,0.00018104,2]
[374754019,1753432240469,-460.0,0.00018104,2]
[374754020,1753432240478,-460.0,0.00018105,2]
[374754021,1753432240487,-460.0,0.00018105,2]
[374754022,1753432240497,-460.0,0.00018105,2]
[374754024,1753432240507,-460.0,0.00018105,2]
[374754025,1753432240517,-460.0,0.00018105,2]
[374754026,1753432240526,-423.47,0.00018105,2]
[374754027,1753432240536,-460.0,0.00018105,2]
[374754029,1753432240545,-333.99,0.00018105,2]
[374754031,1753432240554,-595.16,0.00018105,2]
[374754033,1753432240564,-460.0,0.00018105,2]
[374754035,1753432240574,-460.0,0.00018105,2]
[374754037,1753432240584,-460.0,0.00018105,2]
[374754039,1753432240593,-460.0,0.00018105,2]
[374754041,1753432240602,-151.0,0.00018105,2]
[374754042,1753432240612,-460.0,0.00018111,2]
[374754043,1753432240622,-460.0,0.00018111,2]
[374754044,1753432240632,-341.45719802,0.00018111,2]
[374754045,1753432240642,-460.0,0.00018111,2]
[374754046,1753432240651,-1000.0,0.00018121,2]
[374754047,1753432240661,-500.0,0.00018368,2]
[374754048,1753432240671,-460.0,0.00018378,2]
[374754049,1753432240681,-460.0,0.00018378,2]
[374754050,1753432240690,-460.0,0.00018378,2]
[374754051,1753432240700,-460.0,0.00018379,2]
[374754052,1753432240709,-387.3,0.00018379,2]
[374754053,1753432240719,-460.0,0.00018379,2]
[374754054,1753432240728,-460.0,0.00018379,2]
[374754055,1753432240738,-460.0,0.00018379,2]
[374754056,1753432240748,-460.0,0.00018379,2]
[374754057,1753432240757,-595.16,0.00018379,2]
[374754058,1753432240767,-285.91,0.00018379,2]
[374754059,1753432240776,-151.0,0.00018379,2]
[374754060,1753432240786,-460.0,0.00018379,2]
[374754061,1753432240796,-460.0,0.00018379,2]
[374754062,1753432240805,-460.0,0.00018379,2]
[374754063,1753432240814,-151.0,0.00018379,2]
[374754064,1753432240824,-151.0,0.00018379,2]
[374754065,1753432240834,-460.0,0.00018385,2]
[374754066,1753432240844,-460.0,0.00018385,2]
[374754067,1753432240854,-460.0,0.00018385,2]
[374754068,1753432240863,-500.0,0.00018538,2]
[374754069,1753432240872,-500.0,0.00018538,2]
[374754070,1753432240883,-420.0,0.00018573,2]
[374754071,1753432240895,-460.0,0.00018652,2]
[374754072,1753432240905,-460.0,0.00018652,2]
[374754073,1753432240914,-460.0,0.00018652,2]
[374754074,1753432240925,-460.0,0.00018653,2]
[374754075,1753432240934,-151.0,0.00018653,2]
[374754076,1753432240943,-151.0,0.00018653,2]
[374754077,1753432240953,-460.0,0.00018653,2]
[374754079,1753432240962,-585.69,0.00018653,2]
[374754081,1753432240971,-460.0,0.00018653,2]
[374754082,1753432240980,-460.0,0.00018653,2]
[374754083,1753432240990,-595.16,0.00018653,2]
[374754084,1753432241000,-460.0,0.00018653,2]
[374754085,1753432241011,-460.0,0.00018653,2]
[374754086,1753432241023,-460.0,0.00018653,2]
[374754087,1753432241033,-460.0,0.00018659,2]
[374754088,1753432241043,-460.0,0.00018659,2]
[374754089,1753432241053,-460.0,0.00018659,2]
[374754090,1753432241063,-1500.0,0.00018668,2]
[374754091,1753432241072,-215.93003454,0.00018683,2]
[374754092,1753432241081,-526.33361954,0.00018683,2]
[374754093,1753432241090,-214.7599002,0.00018683,2]
[374754094,1753432241100,-840.4016166,0.00018683,2]
[374754095,1753432241111,-231.20877768,0.00018683,2]
[374754096,1753432241120,-160.0,0.00018683,2]
[374754097,1753432241130,-160.0,0.00018683,2]
[374754098,1753432241139,-160.0,0.00018683,2]
[374754099,1753432241149,-160.0,0.00018683,2]
[374754100,1753432241159,-12627.2413641,0.00018687,2]
[374754101,1753432241170,-151.0,0.00018687,2]
[374754102,1753432241180,-151.0,0.00018687,2]
[374754103,1753432241190,-151.0,0.00018687,2]
[374754104,1753432241201,-500.0,0.00018743,2]
[374754105,1753432241210,-500.0,0.00018743,2]
[374754106,1753432241220,-501.11951743,0.00018743,2]
[374754107,1753432241229,-224.37376149,0.00018743,2]
[374754108,1753432241239,-500.0,0.00018743,2]
[374754109,1753432241248,-502.90876247,0.00018743,2]
[374754110,1753432241257,-500.0,0.00018743,2]
[374754111,1753432241267,-501.83090431,0.00018743,2]
[374754112,1753432241276,-617.08646584,0.00018743,2]
[374754113,1753432241287,-500.0,0.00018829,2]
[374754114,1753432241296,-245.135953,0.000189,2]
[374754115,1753432241306,-245.135953,0.000189,2]
[374754116,1753432241316,-413.09682084,0.000189,2]
[374754117,1753432241325,-1874.64070662,0.000189,2]
[374754118,1753432241335,-460.0,0.00018926,2]
[374754119,1753432241344,-460.0,0.00018926,2]
[374754120,1753432241354,-460.0,0.00018926,2]
[374754121,1753432241363,-460.0,0.00018927,2]
[374754122,1753432241373,-569.27,0.00018927,2]
[374754123,1753432241383,-460.0,0.00018927,2]
[374754124,1753432241393,-595.16,0.00018927,2]
[374754125,1753432241403,-460.0,0.00018927,2]
[374754126,1753432241412,-460.0,0.00018927,2]
[374754127,1753432241423,-194.34,0.00018927,2]
[374754128,1753432241433,-460.0,0.00018933,2]
[374754129,1753432241443,-460.0,0.00018933,2]
[374754130,1753432241452,-460.0,0.00018933,2]
[374754131,1753432241461,-500.0,0.00018944,2]
[374754132,1753432241471,-500.0,0.00018944,2]
[374754133,1753432241481,-151.0,0.00019,2]
[374754134,1753432241490,-1874.64070643,0.00019141,2]
[374754135,1753432241500,-190.8716164,0.00019178,2]
[374754136,1753432241510,-460.0,0.000192,2]
[374754137,1753432241519,-460.0,0.000192,2]
[374754138,1753432241529,-460.0,0.000192,2]
[374754139,1753432241539,-151.0,0.00019201,2]
[374754140,1753432241548,-151.0,0.00019201,2]
[374754141,1753432241558,-564.3,0.00019201,2]
[374754142,1753432241568,-544.54,0.00019201,2]
[374754143,1753432241577,-595.16,0.00019201,2]
[374754144,1753432241586,-255.64,0.00019201,2]
[374754145,1753432241596,-460.0,0.00019201,2]
[374754146,1753432241606,-460.0,0.00019203,2]
[374754147,1753432241617,-460.0,0.00019203,2]
[374754148,1753432241626,-460.0,0.00019203,2]
[374754149,1753432241636,-460.0,0.00019203,2]
[374754150,1753432241646,-460.0,0.00019203,2]
[374754151,1753432241655,-460.58815721,0.00019203,2]
[374754152,1753432241664,-189.93047499,0.00019203,2]
[374754153,1753432241675,-460.0,0.00019207,2]
[374754154,1753432241685,-460.0,0.00019207,2]
[374754155,1753432241695,-347.41,0.00019207,2]
[374754156,1753432241704,-2000.0,0.00019216,2]
[374754157,1753432241714,-464.87,0.00019277,2]
[374754158,1753432241724,-1000.0,0.00019291,2]
[374754159,1753432241733,-623.84133564,0.00019291,2]
[374754160,1753432241742,-5649.37,0.00019329,2]
[374754161,1753432241753,-1874.64070643,0.00019383,2]
[374754162,1753432241762,-460.0,0.00019474,2]
[374754163,1753432241772,-460.0,0.00019474,2]
[374754164,1753432241782,-460.0,0.00019474,2]
[374754165,1753432241791,-595.16,0.00019475,2]
[374754166,1753432241800,-460.0,0.00019475,2]
[374754167,1753432241810,-460.0,0.00019477,2]
[374754168,1753432241820,-460.0,0.00019481,2]
[374754169,1753432241831,-460.0,0.00019481,2]
[374754170,1753432241840,-215.0738,0.00019504,2]
[374754171,1753432241850,-1352.23982067,0.00019507,2]
[374754172,1753432241860,-1874.64070643,0.00019624,2]
[374754173,1753432241871,-460.0,0.00019748,2]
[374754174,1753432241880,-460.0,0.00019748,2]
[374754175,1753432241891,-460.0,0.00019748,2]
[374754176,1753432241901,-595.16,0.00019749,2]
[374754177,1753432241910,-460.0,0.00019749,2]
[374754178,1753432241921,-205.46,0.00019755,2]
[374754179,1753432241932,-460.0,0.00019755,2]
[374754180,1753432241942,-2500.0,0.00019764,2]
[374754181,1753432241951,-1874.64070643,0.00019866,2]
[374754182,1753432241962,-23930.19777513,0.000199,2]
[374754183,1753432241971,-151.0,0.000199,2]
[374754184,1753432241982,-151.0,0.000199,2]
[374754185,1753432241993,-151.0,0.000199,2]
[374754186,1753432242004,-250.67219059,0.00020022,2]
[374754187,1753432242014,-460.0,0.00020022,2]
[374754188,1753432242027,-460.0,0.00020022,2]
[374754189,1753432242036,-595.16,0.00020023,2]
[374754190,1753432242046,-460.0,0.00020023,2]
[374754191,1753432242056,-174.8,0.00020024,3]
[374754192,1753432242067,-460.0,0.00020029,2]
[374754193,1753432242077,-1874.64070643,0.00020107,2]
[374754194,1753432242087,-951.653,0.00020187,2]
[374754195,1753432242097,-509.143191,0.00020187,2]
[374754196,1753432242119,-929.73,0.00020195,2]
[374754197,1753432242130,-151.0,0.000202,4]
[374754198,1753432242140,-429.674968,0.00020219,2]
[374754199,1753432242150,-587.0,0.00020286,2]
[374754200,1753432242160,-460.0,0.00020296,2]
[374754201,1753432242171,-460.0,0.00020296,2]
[374754202,1753432242181,-595.16,0.00020297,2]
[374754203,1753432242192,-460.0,0.00020297,2]
[374754204,1753432242202,-364.05,0.00020303,2]
[374754205,1753432242213,-2500.0,0.00020312,2]
[374754206,1753432242223,-1874.64070643,0.00020348,3]
[374754207,1753432242234,-460.0,0.0002057,2]
[374754208,1753432242244,-460.0,0.0002057,2]
[374754209,1753432242254,-595.16,0.00020571,2]
[374754210,1753432242264,-568.3,0.00020571,2]
[374754211,1753432242275,-174.8,0.00020575,3]
[374754212,1753432242285,-1874.64070643,0.0002059,3]
[374754213,1753432242295,-151.0,0.0002059,2]
[374754214,1753432242306,-226.330202,0.0002059,2]
[374754215,1753432242317,-700.0,0.00020607,2]
[374754216,1753432242327,-1874.64070643,0.00020831,4]
[374754217,1753432242337,-460.0,0.00020844,2]
[374754218,1753432242347,-460.0,0.00020844,2]
[374754219,1753432242356,-595.16,0.00020845,2]
[374754221,1753432242366,-223.0315306,0.00020873,2]
[374754223,1753432242376,-154.147234,0.00020874,3]
[374754224,1753432242386,-223.33,0.000209,2]
[374754225,1753432242398,-577.7720337,0.00021041,2]
[374754226,1753432242409,-577.7720337,0.00021041,2]
[374754227,1753432242419,-453.9134515,0.00021041,2]
[374754228,1753432242430,-1874.64070643,0.00021072,4]
[374754229,1753432242439,-623.21283863,0.00021113,2]
[374754232,1753432242540,-375.90342378,0.00021113,2]
[374754233,1753432242553,-395.48373759,0.00021113,2]
[374754235,1753432242563,-460.0,0.00021118,2]
[374754237,1753432242572,-460.0,0.00021118,2]
[374754239,1753432242582,-595.16,0.00021119,2]
[374754240,1753432242592,-174.8,0.00021126,4]
[374754241,1753432242602,-5937.11421253,0.00021132,2]
[374754242,1753432242612,-151.0,0.000212,4]
[374754243,1753432242622,-250.0,0.00021208,2]
[374754244,1753432242632,-1352.23982067,0.00021277,2]
[374754259,1753432242768,-209.15498113,0.00021314,5]
[374754261,1753432242780,-870.82351424,0.00021314,5]
[374754268,1753432242906,-460.0,0.00017008,2]
[374754269,1753432242916,-460.0,0.00017008,2]
[374754270,1753432242928,-313.78435309,0.00017009,2]
[374754271,1753432242943,-146.21564691,0.00017009,2]
[374754272,1753432242953,-467.39904636,0.00017282,2]
[374754273,1753432242963,-151.0,0.00019475,2]
[374754274,1753432242972,-794.66221106,0.00021314,5]
[374754276,1753432242981,-460.0,0.00021392,2]
[374754277,1753432242991,-460.0,0.00021392,2]
[374754278,1753432243000,-595.16,0.00021393,2]
[374754279,1753432243010,-151.0,0.000214,3]
[374754280,1753432243022,-154.147234,0.00021441,2]
[374754281,1753432243031,-152.942697,0.00021555,2]
[374754282,1753432243042,-151.0,0.00021555,2]
[374754283,1753432243052,-319.94109348,0.00021555,5]
[374754284,1753432243068,-624.20491612,0.00021555,5]
[374754285,1753432243160,-361.19748624,0.00017005,2]
[374754314,1753432245861,-138.80251376,0.00017005,2]
[374754316,1753432245871,-359.75344919,0.00017005,2]
[374754318,1753432245882,-500.0,0.00017005,2]
[374754320,1753432245891,-500.0,0.00017005,2]
[374754322,1753432245901,-308.27406716,0.00017005,2]
[374754324,1753432245912,-500.0,0.00017005,2]
[374754326,1753432245921,-500.0,0.00017005,2]
[374754328,1753432245932,-500.0,0.00017005,2]
[374754330,1753432245942,-500.0,0.00017005,2]
[374754332,1753432245951,-460.0,0.00017008,2]
[374754334,1753432245961,-460.0,0.00017008,2]
[374754336,1753432245971,-460.0,0.00017009,2]
[374754339,1753432245982,-460.0,0.00017282,2]
[374754340,1753432245992,-930.49469683,0.00021555,5]
[374754342,1753432246001,-154.147234,0.0002156,3]
[374754345,1753432246014,-179.91004498,0.00021591,2]
[374754347,1753432246028,-460.0,0.00021666,2]
[374754349,1753432246038,-460.0,0.00021666,2]
[374754351,1753432246048,-151.0,0.00021667,2]
[374754353,1753432246059,-242.054137,0.00021667,2]
[374754355,1753432246069,-595.16,0.00021667,2]
[374754357,1753432246079,-174.8,0.00021677,4]
[374754359,1753432246088,-151.0,0.000217,4]
[374754361,1753432246100,-187.26766295,0.00021703,2]
[374754366,1753432246140,-512.73233705,0.00021703,2]
[374754368,1753432246150,-189.33430623,0.00021797,6]
[374755099,1753432327762,154.147234,0.0002297,30]
[374755102,1753432535549,458.228871,0.00013699,2]
[374755103,1753432582490,-271.3300553,0.00017005,2]
[374755108,1753432605030,-122.6699447,0.00017005,2]
[374755109,1753432605052,-109.94013242,0.00017006,2]
[374755110,1753432606669,-190.05986758,0.00017006,2]
[374755111,1753432606690,-152.59766631,0.00017006,2]
[374755112,1753432609350,-147.40233369,0.00017006,2]
[374755113,1753432609373,-82.91068273,0.00017007,2]
[374755114,1753432612252,-299.42334361,0.00017007,2]
[374755117,1753432623955,183.77769903,0.00016158,2]
[374755118,1753432638035,-231.79212817,0.00017006,2]
[374755119,1753432642087,-68.20787183,0.00017006,2]
[374755120,1753432642114,-119.20907405,0.00017007,2]
[374755121,1753432642136,-14.40691305,0.00017007,2]
[374755122,1753432644750,-388.94304139,0.00017007,2]
[374755123,1753432646267,-19.79160858,0.00017007,2]
[374755124,1753432646290,-224.52187254,0.00017007,2]
[374755125,1753432648912,-191.87384549,0.00017007,2]
[374755126,1753432651600,-83.60428197,0.00017007,2]
[374755127,1753432651622,-216.02128105,0.00017007,2]
[374755128,1753432653236,-336.1432978,0.00017007,2]
[374755129,1753432659395,-24.67104294,0.00017007,2]
[374755130,1753432659417,-272.58715147,0.00017007,2]
[374755131,1753432662861,-131.19778379,0.00017007,2]
[374755132,1753432662883,-93.10555809,0.00017007,2]
[374755133,1753432665030,-178.3929195,0.00017007,2]
[374755135,1753432689787,-28.50152241,0.00017007,2]
[374755136,1753432689813,-248.90854927,0.00017007,2]
[374755137,1753432692594,-172.65967755,0.00017007,2]
[374755138,1753432694115,-38.43177318,0.00017007,2]
[374755139,1753432694141,-205.96632852,0.00017007,2]
[374755140,1753432698079,-254.03367148,0.00017007,2]
[374755141,1753432698102,-78.18359217,0.00017007,2]
[374755142,1753432723001,-162.73761837,0.00017007,2]
[374755143,1753432727019,-219.07878946,0.00017007,2]
[374755144,1753432727042,-125.8659051,0.00017007,2]
[374755145,1753432729733,-293.67812895,0.00017007,2]
[374755146,1753432732422,192.35581493,0.00016909,2]
[374755147,1753432732449,-40.45596595,0.00017007,2]
[374755148,1753432732474,-165.8659051,0.00017007,2]
[374755149,1753432734014,-194.70098397,0.00017007,2]
[374755150,1753432736803,-99.43311093,0.00017007,2]
[374755151,1753432736826,-69.34048011,0.00017007,2]
[374755152,1753432740039,-190.89460009,0.00017007,2]
[374755153,1753432746557,-150.0,0.00017007,2]
[374755154,1753432763085,-223.06625436,0.00017007,2]
[374755155,1753432766784,-86.93374564,0.00017007,2]
[374755156,1753432766808,-142.58355685,0.00017007,2]
[374755157,1753432771008,-161.11560585,0.00017007,2]
[374755158,1753432773874,-156.3008373,0.00017007,2]
[374755159,1753432773901,-43.35130851,0.00017007,2]
[374755160,1753432776760,-156.87206231,0.00017007,2]
[374755161,1753432778879,-210.60405333,0.00017007,2]
[374755162,1753432781339,-49.17257585,0.00017007,2]
[374755163,1753432781365,-110.87779424,0.00017007,2]
[374755164,1753432783180,-183.67866745,0.00017007,2]
[374755165,1753432786690,-165.44353831,0.00017007,2]
[374755166,1753432786713,-52.00108955,0.00017007,2]
[374755167,1753432812470,-191.20274436,0.00017006,2]
[374755168,1753432814136,-108.79725564,0.00017006,2]
[374755169,1753432814165,-149.33616522,0.00017006,2]
[374755170,1753432818790,-231.2908446,0.00017006,2]
[374755171,1753432842711,-158.36025649,0.00017006,2]
[374755172,1753432845852,-429.00134431,0.00017006,2]
[374755173,1753432847972,-176.71233421,0.00017006,2]
[374755174,1753432850783,-55.29905517,0.00017006,2]
[374755175,1753432850806,-159.3501363,0.00017006,2]
[374755176,1753432859001,-140.6498637,0.00017006,2]
[374755177,1753432859026,-54.52296857,0.00017006,2]
[374755178,1753432862524,-307.00527109,0.00017006,2]
[374755179,1753432865582,-138.47176034,0.00017006,2]
[374755180,1753432865610,-161.52823966,0.00017006,2]
[374755181,1753432865866,154.147234,0.0002297,30]
[374755182,1753432870814,-228.03943292,0.00017006,2]
[374755183,1753432870836,-69.13606508,0.00017006,2]
[374755184,1753432894921,-130.21389342,0.00017006,2]
[374755185,1753432894945,-55.83023875,0.00017006,2]
[374755186,1753432900752,-156.13822283,0.00017006,2]
[374755187,1753432902789,-94.42860604,0.00017006,2]
[374755188,1753432902814,-89.81652315,0.00017006,2]
[374755189,1753432904349,-271.77421661,0.00017006,2]
[374755190,1753432908319,185.890026,0.00016118,2]
[374755191,1753432909364,-138.40926024,0.00017006,2]
[374755192,1753432909390,-161.59073976,0.00017006,2]
[374755193,1753432911558,-27.92484751,0.00017006,2]
[374755194,1753432911581,-195.17283227,0.00017006,2]
[374755195,1753432911604,-18.05758433,0.00017006,2]
[374755196,1753432937035,-261.76701221,0.00017006,2]
[374755197,1753432942853,-17.35090146,0.00017006,2]
[374755198,1753432942876,-320.14935474,0.00017006,2]
[374755199,1753432946379,-254.40638632,0.00017006,2]
[374755200,1753432949387,-190.89019684,0.00017006,2]
[374755201,1753432951428,-289.00328666,0.00017006,2]
[374755202,1753432956649,-145.55077544,0.00017006,2]
[374755203,1753432956672,-124.26040719,0.00017006,2]
[374755204,1753432962273,-61.78372498,0.00017006,2]
[374755205,1753432962297,-101.28252594,0.00017006,2]
[374755206,1753432966685,-59.41230183,0.00017006,2]
[374755207,1753432966710,-240.58769817,0.00017006,2]
[374755208,1753432971435,-59.41230183,0.00017006,2]
[374755209,1753432971458,-131.47789501,0.00017006,2]
[374755210,1753432976370,1344.30945132,0.00017,2]
[374755211,1753432981461,-386.20370533,0.00017006,2]
[374755212,1753432981493,-492.64945468,0.00017006,2]
[374755213,1753432981521,-300.0,0.00017006,2]
[374755214,1753432981549,-500.0,0.00017006,2]
[374755215,1753432981575,-259.38097641,0.00017006,2]
[374755216,1753432981603,-300.0,0.00017006,2]
[374755217,1753432981629,-407.99891045,0.00017007,2]
[374755218,1753432981655,-470.37708431,0.00017007,2]
[374755219,1753432981682,-460.0,0.00017007,2]
[374755220,1753432981709,-460.0,0.00017007,2]
[374755221,1753432981734,-460.0,0.00017007,2]
[374755222,1753432981758,-460.0,0.00017007,2]
[374755223,1753432981787,-460.0,0.00017007,2]
[374755224,1753432981816,-460.0,0.00017007,2]
[374755225,1753432981842,-460.0,0.00017007,2]
[374755226,1753432981869,-460.0,0.00017007,2]
[374755227,1753432981894,-460.0,0.00017007,2]
[374755228,1753432981920,-460.0,0.00017007,2]
[374755229,1753432981943,-460.0,0.00017007,2]
[374755230,1753432981965,-460.0,0.00017007,2]
[374755231,1753432981991,-460.0,0.00017007,2]
[374755232,1753432982015,-460.0,0.00017007,2]
[374755233,1753432982042,-443.38986882,0.00017007,2]
[374755234,1753432982692,168.31133809,0.00016908,2]
[374755235,1753432984421,1606.04237993,0.00017,2]
[374755236,1753432984448,3393.95762007,0.00017,2]
[374755237,1753432996516,-300.0,0.00017005,2]
[374755238,1753432996540,-170.43450636,0.00017006,2]
[374755239,1753433020646,-20.45569048,0.00017006,2]
[374755240,1753433020669,-213.78100508,0.00017006,2]
[374755241,1753433022690,-159.85245639,0.00017006,2]
[374755243,1753433062333,16606.04237993,0.00016118,2]
[374755244,1753433062355,8293.95762007,0.00016118,2]
[374755245,1753433067824,5000.0,0.00017,2]
[374755246,1753433071759,-126.36653853,0.00017006,2]
[374755247,1753433071798,-349.1902678,0.00017006,2]
[374755248,1753433071821,-300.0,0.00017006,2]
[374755249,1753433071843,-460.0,0.00017007,2]
[374755250,1753433071866,-460.0,0.00017007,2]
[374755251,1753433071890,-460.0,0.00017007,2]
[374755252,1753433071912,-460.0,0.00017007,2]
[374755253,1753433071934,-500.0,0.00017007,2]
[374755254,1753433071956,-460.0,0.00017007,2]
[374755255,1753433071977,-460.0,0.00017007,2]
[374755256,1753433071998,-460.0,0.00017007,2]
[374755257,1753433072019,-476.94476119,0.00017007,2]
[374755258,1753433072041,-460.0,0.00017007,2]
[374755259,1753433072067,-460.0,0.00017007,2]
[374755260,1753433072089,-460.0,0.00017007,2]
[374755261,1753433072110,-460.0,0.00017007,2]
[374755262,1753433072134,-460.0,0.00017007,2]
[374755263,1753433072159,-460.0,0.00017007,2]
[374755264,1753433072182,-460.0,0.00017007,2]
[374755265,1753433072205,-460.0,0.00017007,2]
[374755266,1753433072231,-460.0,0.00017007,2]
[374755267,1753433072255,-460.0,0.00017007,2]
[374755268,1753433072278,-460.0,0.00017007,2]
[374755269,1753433072302,-460.0,0.00017007,2]
[374755270,1753433072324,-460.0,0.00017007,2]
[374755271,1753433072351,-156.0624735,0.00017007,2]
[374755272,1753433072374,-460.0,0.00017007,2]
[374755273,1753433072396,-460.0,0.00017007,2]
[374755274,1753433072420,-460.0,0.00017007,2]
[374755275,1753433072442,-495.09788895,0.00017007,2]
[374755276,1753433072466,-460.0,0.00017007,2]
[374755277,1753433072491,-460.0,0.00017007,2]
[374755278,1753433072513,-460.0,0.00017007,2]
[374755279,1753433072537,-460.0,0.00017007,2]
[374755280,1753433072560,-460.0,0.00017007,2]
[374755281,1753433072584,-460.0,0.00017007,2]
[374755282,1753433072608,-460.0,0.00017007,2]
[374755283,1753433072632,-460.0,0.00017007,2]
[374755284,1753433072654,-460.0,0.00017007,2]
[374755285,1753433072677,-460.0,0.00017007,2]
[374755286,1753433072702,-460.0,0.00017007,2]
[374755287,1753433072724,-460.0,0.00017007,2]
[374755288,1753433072745,-460.0,0.00017007,2]
[374755289,1753433072769,-460.0,0.00017007,2]
[374755290,1753433072791,-460.0,0.00017007,2]
[374755291,1753433072813,-460.0,0.00017007,2]
[374755292,1753433072835,-460.0,0.00017007,2]
[374755293,1753433072855,-576.02,0.00017007,2]
[374755294,1753433072879,-460.0,0.00017007,2]
[374755295,1753433072902,-460.0,0.00017007,2]
[374755296,1753433072923,-465.19338208,0.00017007,2]
[374755297,1753433072945,-460.0,0.00017007,2]